[Event "*** Titled Tuesday Blitz"]
[Site "Chess.com"]
[Date "2020.05.26"]
[Round "4"]
[White "cancrushyou"]
[Black "Abund"]
[Result "0-1"]
[WhiteElo "2424"]
[BlackElo "2607"]
[TimeControl "180+1"]
[EndTime "10:38:40 PDT"]
[Termination "Abund won by resignation"]

1. d4 {[%clk 0:03:00.9]} 1... Nf6 {[%clk 0:02:47.1]} 2. c4 {[%clk 0:03:00.3]}
2... g6 {[%clk 0:02:41.9]} 3. g3 {[%clk 0:02:42.2]} 3... Bg7 {[%clk 0:02:40.8]}
4. Bg2 {[%clk 0:02:41.6]} 4... d5 {[%clk 0:02:41.2]} 5. cxd5 {[%clk 0:02:41.3]}
5... Nxd5 {[%clk 0:02:42.1]} 6. Nf3 {[%clk 0:02:41.5]} 6... Nb6 {[%clk
0:02:41.3]} 7. O-O {[%clk 0:02:39.4]} 7... Nc6 {[%clk 0:02:41.7]} 8. e3 {[%clk
0:02:39.6]} 8... O-O {[%clk 0:02:40.2]} 9. Nc3 {[%clk 0:02:38.8]} 9... Re8
{[%clk 0:02:38.9]} 10. Nh4 {[%clk 0:02:38.9]} 10... e5 {[%clk 0:02:33.6]} 11. d5
{[%clk 0:02:38.8]} 11... Na5 {[%clk 0:02:21.3]} 12. Qc2 {[%clk 0:02:24.7]} 12...
Bd7 {[%clk 0:02:00.6]} 13. Rd1 {[%clk 0:02:10.9]} 13... Rc8 {[%clk 0:01:49.9]}
14. b3 {[%clk 0:01:57.7]} 14... e4 {[%clk 0:01:32.4]} 15. Ba3 {[%clk 0:01:39.4]}
15... c5 {[%clk 0:00:58.8]} 16. Rac1 {[%clk 0:01:21.7]} 16... g5 {[%clk
0:00:53.5]} 17. Nxe4 {[%clk 0:01:14.3]} 17... gxh4 {[%clk 0:00:47.1]} 18. Nd6
{[%clk 0:01:09.1]} 18... Bg4 {[%clk 0:00:46.3]} 19. Nxe8 {[%clk 0:00:57.4]}
19... Bxd1 {[%clk 0:00:33]} 20. Rxd1 {[%clk 0:00:58.3]} 20... Qxe8 {[%clk
0:00:33.3]} 21. Be4 {[%clk 0:00:51.9]} 21... h6 {[%clk 0:00:29.7]} 22. Bf5
{[%clk 0:00:43.1]} 22... Rd8 {[%clk 0:00:19.8]} 23. Qxc5 {[%clk 0:00:36.4]}
23... Qe5 {[%clk 0:00:18.7]} 24. e4 {[%clk 0:00:20.8]} 24... hxg3 {[%clk
0:00:17.5]} 25. hxg3 {[%clk 0:00:20.8]} 25... Nc6 {[%clk 0:00:16.6]} 26. Kg2
{[%clk 0:00:13.7]} 26... Bf8 {[%clk 0:00:08.4]} 27. Qc1 {[%clk 0:00:10.2]} 27...
Bxa3 {[%clk 0:00:07.7]} 28. Qxa3 {[%clk 0:00:11.1]} 28... Ne7 {[%clk 0:00:07.5]}
29. g4 {[%clk 0:00:06.8]} 29... Nxf5 {[%clk 0:00:05.8]} 30. exf5 {[%clk
0:00:07.7]} 30... Rxd5 {[%clk 0:00:05]} 31. Rxd5 {[%clk 0:00:07.5]} 31... Qxd5+
{[%clk 0:00:05.2]} 0-1

[Event "*** Titled Tuesday Blitz"]
[Site "Chess.com"]
[Date "2020.05.26"]
[Round "4"]
[White "Munkhzul_Turmunkh"]
[Black "bakki78"]
[Result "1-0"]
[WhiteElo "2566"]
[BlackElo "2750"]
[TimeControl "180+1"]
[EndTime "10:38:41 PDT"]
[Termination "Munkhzul_Turmunkh won by resignation"]

1. e4 {[%clk 0:03:00.9]} 1... c5 {[%clk 0:02:58.5]} 2. Nf3 {[%clk 0:03:00.6]}
2... Nc6 {[%clk 0:02:57.9]} 3. d4 {[%clk 0:03:00.2]} 3... cxd4 {[%clk
0:02:57.5]} 4. Nxd4 {[%clk 0:02:59.8]} 4... Nf6 {[%clk 0:02:58]} 5. Nc3 {[%clk
0:02:59.3]} 5... d6 {[%clk 0:02:58]} 6. Bg5 {[%clk 0:02:57.6]} 6... e6 {[%clk
0:02:57.9]} 7. Qd2 {[%clk 0:02:55.1]} 7... a6 {[%clk 0:02:57.7]} 8. O-O-O {[%clk
0:02:53.9]} 8... Bd7 {[%clk 0:02:57.9]} 9. f4 {[%clk 0:02:53.3]} 9... Be7 {[%clk
0:02:57.6]} 10. Kb1 {[%clk 0:02:45.3]} 10... b5 {[%clk 0:02:55.9]} 11. Nb3
{[%clk 0:02:24.8]} 11... b4 {[%clk 0:02:51.3]} 12. Bxf6 {[%clk 0:02:24.7]} 12...
gxf6 {[%clk 0:02:28.7]} 13. Ne2 {[%clk 0:02:20.9]} 13... Qb6 {[%clk 0:02:28.1]}
14. f5 {[%clk 0:02:04.7]} 14... e5 {[%clk 0:02:16.9]} 15. Qd5 {[%clk 0:01:51.7]}
15... Rc8 {[%clk 0:02:03.8]} 16. Nec1 {[%clk 0:01:42.3]} 16... Na7 {[%clk
0:01:59.7]} 17. Bc4 {[%clk 0:01:31.6]} 17... Rf8 {[%clk 0:01:51.6]} 18. Qa5
{[%clk 0:01:19.5]} 18... Qxa5 {[%clk 0:00:54.6]} 19. Nxa5 {[%clk 0:01:20.4]}
19... Nb5 {[%clk 0:00:54.9]} 20. Bd5 {[%clk 0:01:15.1]} 20... Rc7 {[%clk
0:00:51.5]} 21. Nd3 {[%clk 0:01:13.1]} 21... Rg8 {[%clk 0:00:49.7]} 22. g3
{[%clk 0:01:12]} 22... Bd8 {[%clk 0:00:42.7]} 23. Nxb4 {[%clk 0:01:08.5]} 23...
Rc5 {[%clk 0:00:42.6]} 24. Nb7 {[%clk 0:01:01.1]} 24... Rc8 {[%clk 0:00:35.4]}
25. Nxd8 {[%clk 0:00:58.4]} 25... Rxd8 {[%clk 0:00:32.7]} 26. Nxa6 {[%clk
0:00:58.1]} 26... Ke7 {[%clk 0:00:32.7]} 27. a4 {[%clk 0:00:51.3]} 27... Nd4
{[%clk 0:00:30.9]} 28. c3 {[%clk 0:00:47.6]} 28... Nf3 {[%clk 0:00:29.5]} 29. b3
{[%clk 0:00:37]} 29... h5 {[%clk 0:00:26.7]} 30. Rd3 {[%clk 0:00:29.6]} 30...
Ng5 {[%clk 0:00:26]} 31. h4 {[%clk 0:00:29.6]} 31... Nh7 {[%clk 0:00:26.5]} 32.
Nb4 {[%clk 0:00:27.2]} 32... Nf8 {[%clk 0:00:23.7]} 33. Kc2 {[%clk 0:00:24.9]}
33... Rc8 {[%clk 0:00:22.1]} 34. c4 {[%clk 0:00:22.9]} 34... Be8 {[%clk
0:00:21.9]} 35. a5 {[%clk 0:00:19.8]} 35... Nd7 {[%clk 0:00:22.5]} 36. a6 {[%clk
0:00:19.3]} 36... Nb6 {[%clk 0:00:22.7]} 37. Ra1 {[%clk 0:00:17.7]} 37... Bd7
{[%clk 0:00:23]} 38. a7 {[%clk 0:00:16.8]} 38... Rgd8 {[%clk 0:00:21.3]} 39. Bb7
{[%clk 0:00:16.6]} 39... Rc7 {[%clk 0:00:20.8]} 40. a8=Q {[%clk 0:00:16.5]}
40... Nxa8 {[%clk 0:00:20.6]} 41. Bxa8 {[%clk 0:00:17.4]} 41... Rb8 {[%clk
0:00:18.8]} 42. Nd5+ {[%clk 0:00:16.5]} 1-0

[Event "*** Titled Tuesday Blitz"]
[Site "Chess.com"]
[Date "2020.05.26"]
[Round "4"]
[White "Benjoneliere44"]
[Black "Shield12"]
[Result "1-0"]
[WhiteElo "2547"]
[BlackElo "2804"]
[TimeControl "180+1"]
[EndTime "10:38:42 PDT"]
[Termination "Benjoneliere44 won by resignation"]

1. d4 {[%clk 0:03:00.9]} 1... Nf6 {[%clk 0:02:59.9]} 2. Bf4 {[%clk 0:02:59.9]}
2... d5 {[%clk 0:02:59.9]} 3. e3 {[%clk 0:02:59.9]} 3... c5 {[%clk 0:03:00.5]}
4. c3 {[%clk 0:02:59.9]} 4... Nc6 {[%clk 0:03:01.1]} 5. Nd2 {[%clk 0:03:00.2]}
5... e6 {[%clk 0:03:00.8]} 6. Bd3 {[%clk 0:02:59.9]} 6... b6 {[%clk 0:02:56.8]}
7. Ngf3 {[%clk 0:02:53.8]} 7... Bb7 {[%clk 0:02:56.4]} 8. Ne5 {[%clk 0:02:53.4]}
8... Nxe5 {[%clk 0:02:49]} 9. Bxe5 {[%clk 0:02:50.8]} 9... Bd6 {[%clk
0:02:48.1]} 10. Bb5+ {[%clk 0:02:45.4]} 10... Kf8 {[%clk 0:02:47.7]} 11. Nf3
{[%clk 0:02:41.7]} 11... a6 {[%clk 0:02:43.4]} 12. Bd3 {[%clk 0:02:37]} 12...
Bxe5 {[%clk 0:02:40.4]} 13. Nxe5 {[%clk 0:02:34.7]} 13... Nd7 {[%clk 0:02:40.2]}
14. Nf3 {[%clk 0:02:21.4]} 14... g6 {[%clk 0:02:37.1]} 15. h4 {[%clk 0:02:19.6]}
15... h6 {[%clk 0:02:36.8]} 16. Qe2 {[%clk 0:02:14.2]} 16... Kg7 {[%clk
0:02:33.7]} 17. h5 {[%clk 0:01:57.9]} 17... g5 {[%clk 0:02:31.8]} 18. Ne5 {[%clk
0:01:58.3]} 18... Nxe5 {[%clk 0:02:23.4]} 19. dxe5 {[%clk 0:01:59.2]} 19... f6
{[%clk 0:01:58.1]} 20. exf6+ {[%clk 0:01:57.6]} 20... Qxf6 {[%clk 0:01:59]} 21.
f4 {[%clk 0:01:40.2]} 21... Rhf8 {[%clk 0:01:48.2]} 22. Rf1 {[%clk 0:01:36.2]}
22... e5 {[%clk 0:01:45]} 23. g3 {[%clk 0:01:04.7]} 23... Rae8 {[%clk
0:01:27.5]} 24. fxg5 {[%clk 0:00:59.3]} 24... Qxf1+ {[%clk 0:01:14.1]} 25. Qxf1
{[%clk 0:00:59.4]} 25... Rxf1+ {[%clk 0:01:15]} 26. Bxf1 {[%clk 0:00:56.8]}
26... hxg5 {[%clk 0:01:15.9]} 27. Rd1 {[%clk 0:00:48.1]} 27... Rd8 {[%clk
0:01:01.6]} 28. Bg2 {[%clk 0:00:47.4]} 28... g4 {[%clk 0:00:59]} 29. c4 {[%clk
0:00:45.9]} 29... e4 {[%clk 0:00:54.4]} 30. Bxe4 {[%clk 0:00:35.4]} 30... Re8
{[%clk 0:00:46.8]} 31. Bg2 {[%clk 0:00:30.9]} 31... Rxe3+ {[%clk 0:00:37.8]} 32.
Kf2 {[%clk 0:00:31.1]} 32... Re5 {[%clk 0:00:38.7]} 33. cxd5 {[%clk 0:00:25.9]}
33... Bc8 {[%clk 0:00:34.2]} 34. d6 {[%clk 0:00:25.1]} 34... Bd7 {[%clk
0:00:34.2]} 35. Rd5 {[%clk 0:00:22.9]} 35... Kf6 {[%clk 0:00:17.1]} 36. Rxe5
{[%clk 0:00:21.2]} 36... Kxe5 {[%clk 0:00:18]} 37. h6 {[%clk 0:00:21.7]} 37...
Kf6 {[%clk 0:00:18]} 38. Ke3 {[%clk 0:00:19.9]} 38... Kg6 {[%clk 0:00:17.8]} 39.
Kf4 {[%clk 0:00:19.9]} 39... Kxh6 {[%clk 0:00:17.6]} 40. Ke5 {[%clk 0:00:20.4]}
40... Kg5 {[%clk 0:00:18.1]} 41. Bd5 {[%clk 0:00:19.5]} 41... a5 {[%clk
0:00:17.1]} 42. Be6 {[%clk 0:00:19.8]} 42... Bc6 {[%clk 0:00:17.4]} 43. d7
{[%clk 0:00:19.7]} 1-0

[Event "*** Titled Tuesday Blitz"]
[Site "Chess.com"]
[Date "2020.05.26"]
[Round "4"]
[White "chegueps"]
[Black "ClassyEl"]
[Result "0-1"]
[WhiteElo "2426"]
[BlackElo "2609"]
[TimeControl "180+1"]
[EndTime "10:38:42 PDT"]
[Termination "ClassyEl won by resignation"]

1. e4 {[%clk 0:02:55.8]} 1... d6 {[%clk 0:02:59.5]} 2. d4 {[%clk 0:02:54.7]}
2... Nf6 {[%clk 0:02:59.4]} 3. Nc3 {[%clk 0:02:54.7]} 3... c6 {[%clk 0:02:59.7]}
4. f4 {[%clk 0:02:46.3]} 4... Qa5 {[%clk 0:02:59.2]} 5. Bd3 {[%clk 0:02:41.2]}
5... e5 {[%clk 0:02:58]} 6. Nf3 {[%clk 0:02:39.4]} 6... Bg4 {[%clk 0:02:56]} 7.
Be3 {[%clk 0:02:26.4]} 7... Qb6 {[%clk 0:02:54.1]} 8. Qd2 {[%clk 0:02:02.5]}
8... exf4 {[%clk 0:02:52.6]} 9. Bxf4 {[%clk 0:01:55.4]} 9... Bxf3 {[%clk
0:02:52.6]} 10. gxf3 {[%clk 0:01:56.3]} 10... Qxd4 {[%clk 0:02:52.1]} 11. O-O-O
{[%clk 0:01:51.5]} 11... Nbd7 {[%clk 0:02:49.2]} 12. Be3 {[%clk 0:01:44.9]}
12... Qb4 {[%clk 0:02:48.8]} 13. a3 {[%clk 0:01:38.4]} 13... Qa5 {[%clk
0:02:47.8]} 14. f4 {[%clk 0:01:27.8]} 14... Be7 {[%clk 0:02:41.5]} 15. Rhg1
{[%clk 0:01:27.8]} 15... g6 {[%clk 0:02:41.2]} 16. Rg5 {[%clk 0:01:17.8]} 16...
Qc7 {[%clk 0:02:41]} 17. e5 {[%clk 0:01:16.7]} 17... dxe5 {[%clk 0:02:31.1]} 18.
fxe5 {[%clk 0:01:12.9]} 18... Nxe5 {[%clk 0:02:25.5]} 19. Bf4 {[%clk 0:01:12.7]}
19... Nxd3+ {[%clk 0:02:23.6]} 20. cxd3 {[%clk 0:01:12.7]} 20... Qd7 {[%clk
0:02:22.6]} 21. Qe3 {[%clk 0:01:04.2]} 21... O-O {[%clk 0:02:05.8]} 22. Re5
{[%clk 0:01:01.3]} 22... Bd6 {[%clk 0:01:57.3]} 23. Ne4 {[%clk 0:00:57.1]} 23...
Bxe5 {[%clk 0:01:31.4]} 24. Bxe5 {[%clk 0:00:55.3]} 24... Nxe4 {[%clk
0:01:31.6]} 25. dxe4 {[%clk 0:00:45]} 25... Qe6 {[%clk 0:01:31.8]} 26. Bc3
{[%clk 0:00:42.7]} 26... f6 {[%clk 0:01:21]} 27. e5 {[%clk 0:00:30.4]} 27...
fxe5 {[%clk 0:01:13.4]} 28. Kb1 {[%clk 0:00:21.2]} 28... b6 {[%clk 0:01:06]} 29.
Ka1 {[%clk 0:00:15.1]} 29... Rae8 {[%clk 0:01:05.6]} 30. h4 {[%clk 0:00:13.1]}
30... Rf5 {[%clk 0:01:04.6]} 31. Qg3 {[%clk 0:00:03.7]} 31... Qf7 {[%clk
0:00:58.2]} 32. Qh3 {[%clk 0:00:02.5]} 32... Rf3 {[%clk 0:00:56.2]} 33. Qg2
{[%clk 0:00:02.4]} 33... Qf5 {[%clk 0:00:41.5]} 34. Qd2 {[%clk 0:00:01.6]} 34...
Qf7 {[%clk 0:00:33.1]} 35. Qd6 {[%clk 0:00:01.9]} 35... Rf6 {[%clk 0:00:32.4]}
36. Qd2 {[%clk 0:00:01.7]} 36... c5 {[%clk 0:00:32]} 37. Qe3 {[%clk 0:00:02.2]}
37... Rf5 {[%clk 0:00:32.2]} 38. Qe4 {[%clk 0:00:02.6]} 38... Rf1 {[%clk
0:00:28.9]} 39. Re1 {[%clk 0:00:02.5]} 39... Rxe1+ {[%clk 0:00:28.6]} 40. Qxe1
{[%clk 0:00:03.4]} 40... Qd5 {[%clk 0:00:28.4]} 41. Qg1 {[%clk 0:00:02.9]} 41...
Rf8 {[%clk 0:00:28.3]} 42. Qg5 {[%clk 0:00:03.1]} 42... Rf1+ {[%clk 0:00:28]}
43. Qc1 {[%clk 0:00:04]} 0-1

[Event "*** Titled Tuesday Blitz"]
[Site "Chess.com"]
[Date "2020.05.26"]
[Round "4"]
[White "Tenamu"]
[Black "Luibov_AN"]
[Result "1-0"]
[WhiteElo "2355"]
[BlackElo "2046"]
[TimeControl "180+1"]
[EndTime "10:38:43 PDT"]
[Termination "Tenamu won by resignation"]

1. d4 {[%clk 0:03:00.9]} 1... g6 {[%clk 0:02:59.7]} 2. Nc3 {[%clk 0:02:59.9]}
2... Bg7 {[%clk 0:03:00]} 3. e4 {[%clk 0:02:58.8]} 3... c5 {[%clk 0:03:00.2]} 4.
Nf3 {[%clk 0:02:58]} 4... Nc6 {[%clk 0:03:00]} 5. Be3 {[%clk 0:02:52.4]} 5...
Qb6 {[%clk 0:02:57.8]} 6. Na4 {[%clk 0:02:37.8]} 6... Qa5+ {[%clk 0:02:57.1]} 7.
c3 {[%clk 0:02:37.1]} 7... cxd4 {[%clk 0:02:55.6]} 8. Nxd4 {[%clk 0:02:36.4]}
8... Nf6 {[%clk 0:02:51.3]} 9. Bd3 {[%clk 0:02:22.7]} 9... d6 {[%clk 0:02:44.2]}
10. Nxc6 {[%clk 0:02:18.8]} 10... bxc6 {[%clk 0:02:43.8]} 11. O-O {[%clk
0:02:17.4]} 11... Ng4 {[%clk 0:02:40.8]} 12. Bd2 {[%clk 0:01:56.3]} 12... Bd7
{[%clk 0:02:23]} 13. b4 {[%clk 0:01:48.8]} 13... Qc7 {[%clk 0:02:17.8]} 14. h3
{[%clk 0:01:47.1]} 14... Nf6 {[%clk 0:02:17.1]} 15. Nb2 {[%clk 0:01:41.2]} 15...
a5 {[%clk 0:02:15]} 16. a3 {[%clk 0:01:39.9]} 16... O-O {[%clk 0:02:13.4]} 17.
Nc4 {[%clk 0:01:37]} 17... axb4 {[%clk 0:02:09.1]} 18. axb4 {[%clk 0:01:35.6]}
18... d5 {[%clk 0:02:09.4]} 19. exd5 {[%clk 0:01:29.2]} 19... cxd5 {[%clk
0:02:00.4]} 20. Na5 {[%clk 0:01:28.1]} 20... h6 {[%clk 0:01:54.4]} 21. Re1
{[%clk 0:01:24.9]} 21... e5 {[%clk 0:01:48.6]} 22. Nb3 {[%clk 0:01:11.8]} 22...
Bc6 {[%clk 0:01:33.5]} 23. Nc5 {[%clk 0:01:08]} 23... e4 {[%clk 0:01:25.2]} 24.
Bf1 {[%clk 0:01:07.5]} 24... Rxa1 {[%clk 0:01:14.1]} 25. Qxa1 {[%clk 0:01:07.3]}
25... Nh5 {[%clk 0:01:04.4]} 26. Qc1 {[%clk 0:01:04.6]} 26... Kh7 {[%clk
0:00:58]} 27. Be2 {[%clk 0:01:03.2]} 27... Nf6 {[%clk 0:00:54.9]} 28. Bf4 {[%clk
0:01:02.1]} 28... Qa7 {[%clk 0:00:47]} 29. Be3 {[%clk 0:00:55.1]} 29... Qe7
{[%clk 0:00:45.5]} 30. Qd2 {[%clk 0:00:36.9]} 30... Nd7 {[%clk 0:00:43.5]} 31.
Ra1 {[%clk 0:00:34.9]} 31... Rd8 {[%clk 0:00:39.9]} 32. Ra7 {[%clk 0:00:31.8]}
32... Qd6 {[%clk 0:00:30.8]} 33. Bf4 {[%clk 0:00:25.9]} 33... Qf6 {[%clk
0:00:24.3]} 34. Nxd7 {[%clk 0:00:22.5]} 34... Rxd7 {[%clk 0:00:24]} 35. Ra3
{[%clk 0:00:17.3]} 35... d4 {[%clk 0:00:20.4]} 36. c4 {[%clk 0:00:16.9]} 36...
d3 {[%clk 0:00:18.9]} 37. Bd1 {[%clk 0:00:17]} 37... Qd4 {[%clk 0:00:18.8]} 38.
b5 {[%clk 0:00:16.6]} 38... Bb7 {[%clk 0:00:18.3]} 39. Bb3 {[%clk 0:00:15.2]}
39... g5 {[%clk 0:00:17.6]} 40. Be3 {[%clk 0:00:15.1]} 40... Qc5 {[%clk
0:00:18]} 41. Bxc5 {[%clk 0:00:14.3]} 1-0

[Event "*** Titled Tuesday Blitz"]
[Site "Chess.com"]
[Date "2020.05.26"]
[Round "4"]
[White "turayev_shahruh17"]
[Black "chenxiaoyuer"]
[Result "1-0"]
[WhiteElo "2504"]
[BlackElo "2306"]
[TimeControl "180+1"]
[EndTime "10:38:44 PDT"]
[Termination "turayev_shahruh17 won by checkmate"]

1. e4 {[%clk 0:03:00.9]} 1... c5 {[%clk 0:02:59.7]} 2. Nc3 {[%clk 0:02:58]} 2...
d6 {[%clk 0:02:59.3]} 3. f4 {[%clk 0:02:56.9]} 3... g6 {[%clk 0:02:58.4]} 4. Nf3
{[%clk 0:02:56.3]} 4... Bg7 {[%clk 0:02:58.4]} 5. Bc4 {[%clk 0:02:56.2]} 5...
Nc6 {[%clk 0:02:58.5]} 6. O-O {[%clk 0:02:55.3]} 6... e6 {[%clk 0:02:58.7]} 7.
d3 {[%clk 0:02:54.3]} 7... Nge7 {[%clk 0:02:58.7]} 8. Qe1 {[%clk 0:02:54.8]}
8... O-O {[%clk 0:02:57.9]} 9. f5 {[%clk 0:02:53.9]} 9... gxf5 {[%clk
0:02:57.8]} 10. Qg3 {[%clk 0:02:51.1]} 10... fxe4 {[%clk 0:02:55]} 11. dxe4
{[%clk 0:02:49.3]} 11... Ng6 {[%clk 0:02:54.3]} 12. Be2 {[%clk 0:02:39.5]} 12...
Nce5 {[%clk 0:02:45.4]} 13. Bg5 {[%clk 0:02:33.2]} 13... Nxf3+ {[%clk
0:02:38.9]} 14. Rxf3 {[%clk 0:02:30.9]} 14... f6 {[%clk 0:02:37.6]} 15. Be3
{[%clk 0:02:29.6]} 15... Qe7 {[%clk 0:02:29.1]} 16. h4 {[%clk 0:02:26.1]} 16...
Ne5 {[%clk 0:02:18.7]} 17. Rff1 {[%clk 0:02:16.2]} 17... Kh8 {[%clk 0:02:12.5]}
18. h5 {[%clk 0:02:16.4]} 18... Rg8 {[%clk 0:02:11.4]} 19. Qh4 {[%clk
0:02:14.1]} 19... h6 {[%clk 0:01:48.7]} 20. Rad1 {[%clk 0:02:14.2]} 20... a6
{[%clk 0:01:45.6]} 21. Bf3 {[%clk 0:01:55.5]} 21... Bd7 {[%clk 0:01:37.4]} 22.
Ne2 {[%clk 0:01:49.7]} 22... Bb5 {[%clk 0:01:33.9]} 23. Rf2 {[%clk 0:01:38.8]}
23... Bxe2 {[%clk 0:01:17.6]} 24. Bxe2 {[%clk 0:01:38.4]} 24... Rad8 {[%clk
0:01:11.3]} 25. c4 {[%clk 0:01:34.7]} 25... Nf7 {[%clk 0:01:09.3]} 26. Rdf1
{[%clk 0:01:27.9]} 26... Ng5 {[%clk 0:01:08]} 27. Qg4 {[%clk 0:01:26]} 27...
Rdf8 {[%clk 0:01:01.4]} 28. Bd3 {[%clk 0:01:21.8]} 28... Nf7 {[%clk 0:00:57.4]}
29. Qh3 {[%clk 0:01:20.1]} 29... Ng5 {[%clk 0:00:52.5]} 30. Qg4 {[%clk
0:01:20.2]} 30... Nf7 {[%clk 0:00:51.2]} 31. Qe2 {[%clk 0:01:18.1]} 31... Ne5
{[%clk 0:00:46.4]} 32. b3 {[%clk 0:01:17.7]} 32... Rf7 {[%clk 0:00:41.6]} 33.
Bf4 {[%clk 0:01:16.5]} 33... Bf8 {[%clk 0:00:34.7]} 34. Bb1 {[%clk 0:01:12.4]}
34... Nc6 {[%clk 0:00:32.1]} 35. Qd2 {[%clk 0:01:10.6]} 35... Nd4 {[%clk
0:00:30.7]} 36. Bxh6 {[%clk 0:01:04.3]} 36... f5 {[%clk 0:00:22.2]} 37. exf5
{[%clk 0:01:01.3]} 37... Bxh6 {[%clk 0:00:17.8]} 38. Qxh6+ {[%clk 0:00:59.2]}
38... Rh7 {[%clk 0:00:17.3]} 39. f6 {[%clk 0:00:58.3]} 39... Rxh6 {[%clk
0:00:14.9]} 40. fxe7 {[%clk 0:00:59.2]} 40... Nf5 {[%clk 0:00:11.5]} 41. Bxf5
{[%clk 0:00:57]} 41... exf5 {[%clk 0:00:11.5]} 42. Rxf5 {[%clk 0:00:57.9]} 42...
Re6 {[%clk 0:00:11.5]} 43. Rf7 {[%clk 0:00:51.7]} 43... Re2 {[%clk 0:00:09.1]}
44. R1f2 {[%clk 0:00:49.7]} 44... Re5 {[%clk 0:00:08.7]} 45. R2f6 {[%clk
0:00:45.6]} 45... Re1+ {[%clk 0:00:06.6]} 46. Kh2 {[%clk 0:00:44.2]} 46... Re2
{[%clk 0:00:06.4]} 47. Rh6# {[%clk 0:00:44.3]} 1-0

[Event "*** Titled Tuesday Blitz"]
[Site "Chess.com"]
[Date "2020.05.26"]
[Round "4"]
[White "Morshynska"]
[Black "NefeLV"]
[Result "1-0"]
[WhiteElo "2167"]
[BlackElo "1787"]
[TimeControl "180+1"]
[EndTime "10:38:44 PDT"]
[Termination "Morshynska won on time"]

1. e4 {[%clk 0:03:00.9]} 1... e6 {[%clk 0:02:57.3]} 2. d4 {[%clk 0:03:00.3]}
2... d5 {[%clk 0:02:56.6]} 3. Bd3 {[%clk 0:02:56.5]} 3... Nf6 {[%clk 0:02:54.2]}
4. e5 {[%clk 0:02:54.2]} 4... Nfd7 {[%clk 0:02:53.4]} 5. c3 {[%clk 0:02:52.5]}
5... c5 {[%clk 0:02:45.5]} 6. Ne2 {[%clk 0:02:43.8]} 6... Nc6 {[%clk 0:02:43.6]}
7. Nd2 {[%clk 0:02:42.5]} 7... cxd4 {[%clk 0:02:41]} 8. cxd4 {[%clk 0:02:43.4]}
8... Qb6 {[%clk 0:02:39.6]} 9. Nf3 {[%clk 0:02:42.5]} 9... Be7 {[%clk
0:02:32.7]} 10. O-O {[%clk 0:02:39.6]} 10... O-O {[%clk 0:02:32.5]} 11. a3
{[%clk 0:02:37]} 11... f5 {[%clk 0:02:31.6]} 12. exf6 {[%clk 0:02:36.3]} 12...
Nxf6 {[%clk 0:02:31.3]} 13. Ng3 {[%clk 0:02:24.2]} 13... g6 {[%clk 0:02:26.5]}
14. Bc2 {[%clk 0:02:04.8]} 14... Qc7 {[%clk 0:02:00.1]} 15. Re1 {[%clk
0:01:59.3]} 15... Bd6 {[%clk 0:01:56.3]} 16. b4 {[%clk 0:01:32.1]} 16... Qg7
{[%clk 0:01:47]} 17. Bb2 {[%clk 0:01:24]} 17... Ng4 {[%clk 0:01:39.9]} 18. h3
{[%clk 0:01:18]} 18... Nh6 {[%clk 0:01:24.8]} 19. b5 {[%clk 0:01:06.3]} 19...
Ne7 {[%clk 0:01:19.2]} 20. Ne5 {[%clk 0:01:01]} 20... Nef5 {[%clk 0:01:13.8]}
21. Ne2 {[%clk 0:00:50.4]} 21... Nh4 {[%clk 0:01:08.1]} 22. Qd3 {[%clk
0:00:46.1]} 22... Qf6 {[%clk 0:00:59.4]} 23. f4 {[%clk 0:00:43.8]} 23... N4f5
{[%clk 0:00:42.7]} 24. Rf1 {[%clk 0:00:40.9]} 24... a6 {[%clk 0:00:35.3]} 25. g4
{[%clk 0:00:40]} 25... Qh4 {[%clk 0:00:29.5]} 26. gxf5 {[%clk 0:00:38.6]} 26...
Nxf5 {[%clk 0:00:26.2]} 27. Kh2 {[%clk 0:00:37.2]} 27... axb5 {[%clk 0:00:23.8]}
28. Ng3 {[%clk 0:00:30.5]} 28... Nh6 {[%clk 0:00:20.5]} 29. Nxg6 {[%clk
0:00:25.8]} 29... Ng4+ {[%clk 0:00:16.6]} 30. Kg2 {[%clk 0:00:20.3]} 30... Ne3+
{[%clk 0:00:13.1]} 31. Qxe3 {[%clk 0:00:19.6]} 31... hxg6 {[%clk 0:00:12.6]} 32.
Qd3 {[%clk 0:00:17.7]} 32... Rf6 {[%clk 0:00:08.5]} 33. Ne2 {[%clk 0:00:16.9]}
33... e5 {[%clk 0:00:07.8]} 34. dxe5 {[%clk 0:00:16.5]} 34... Bf5 {[%clk
0:00:05.8]} 35. Qb3 {[%clk 0:00:15]} 1-0